[Event "European Womens-ch 2025"]
[Site "Rhodes"]
[Date "2025.04.01"]
[Round "2.42"]
[White "Nahapetyan, Ani"]
[Black "Lach, Aleksandra"]
[Result "0-1"]
[Annotator "RC"]
[ECO "C10"]
[WhiteElo "1887"]
[BlackElo "2208"]
[PlyCount "68"]
[EventDate "2025.03.29"]
[EventType "swiss"]
[EventCountry "GRE"]
[SourceTitle "playchess.com"]
[Source "ChessBase"]
[SourceQuality "1"]
[TimeControl "40/5400+30:1800+30"]

1. e4 {[%emt 0:00:03]} e6 {[%emt 0:01:39]} 2. d4 {[%emt 0:00:07]} d5 {[%emt 0:00:09]} 3. Nc3 {[%emt 0:00:07]} dxe4 {[%emt 0:08:11]} 4. Nxe4 {[%emt 0:00:15]} Bd7 {[%emt 0:00:08]} 5. Bd3 {[%emt 0:06:53]} Bc6 {[%emt 0:00:50]} 6. Nf3 {[%emt 0:04:07]} Nd7 {[%emt 0:01:35]} 7. c3 {[%emt 0:05:45]} Ngf6 {[%emt 0:01:30]} 8. Nxf6+ {[%emt 0:01:50]} Nxf6 {[%emt 0:00:38]} 9. O-O {[%emt 0:06:15]} Bxf3 {[%emt 0:04:35]} 10. Qxf3 {[%emt 0:00:12]} c6 {[%emt 0:00:08]} 11. Re1 {[%emt 0:04:34]} Qd5 {[%emt 0:10:48]} 12. Qg3 {[%emt 0:05:04]} Bd6 {[%emt 0:02:41]} 13. Qh4 {[%emt 0:02:59]} Qh5 {[%emt 0:04:55]} 14. Qxh5 {[%emt 0:03:59]} Nxh5 {[%emt 0:00:19]} 15. g3 {[%emt 0:01:30]} O-O-O {[%emt 0:06:59]} 16. b4 {[%emt 0:07:55]} Rhe8 {[%emt 0:08:04]} 17. f4 {[%emt 0:05:19]} Nf6 {[%emt 0:04:59]} 18. a3 {[%emt 0:04:03]} h5 {[%emt 0:02:07]} 19. h4 {[%emt 0:04:45]} Bc7 {[%emt 0:05:53]} 20. Kg2 {[%emt 0:04:35]} Nd5 {[%emt 0:02:14]} 21. Bb2 {[%emt 0:01:38]} a6 {[%emt 0:04:31]} 22. Re2 {[%emt 0:05:01]} b5 {[%emt 0:04:04]} 23. Rae1 {[%emt 0:02:44]} g6 {[%emt 0:00:49]} 24. f5 {[%emt 0:02:45]} gxf5 {[%emt 0:00:23]} 25. Kf3 {[%emt 0:03:47]} Rg8 {[%emt 0:04:25]} 26. Rg2 {[%emt 0:01:09]} f4 {[%emt 0:00:14]} 27. a4 {[%emt 0:01:25]} fxg3 {[%emt 0:00:23]} 28. Bf1 {[%emt 0:01:14]} Rg4 {[%emt 0:01:38]} 29. axb5 {[%emt 0:00:35]} axb5 {[%emt 0:00:07]} 30. c4 {[%emt 0:00:57]} Rf4+ {[%emt 0:00:10]} 31. Ke2 {[%emt 0:00:05]} bxc4 {[%emt 0:00:03]} 32. Kd2 {[%emt 0:00:31]} Rxh4 {[%emt 0:05:46]} 33. Bxc4 {[%emt 0:00:14]} Nf4 {[%emt 0:00:55]} 34. Rxg3 {[%emt 0:00:34]} Rh2+ {[%emt 0:00:07]} 0-1

[Event "European Womens-ch 2025"]
[Site "Rhodes"]
[Date "2025.04.01"]
[Round "2.43"]
[White "Injac, Teodora"]
[Black "Silva, Ana Ines Teixeira Da"]
[Result "1-0"]
[Annotator "TA"]
[ECO "A17"]
[WhiteElo "2454"]
[BlackElo "1893"]
[PlyCount "53"]
[EventDate "2025.03.29"]
[EventType "swiss"]
[EventCountry "GRE"]
[SourceTitle "playchess.com"]
[Source "ChessBase"]
[SourceQuality "1"]
[TimeControl "40/5400+30:1800+30"]

{[%evp 9,53,18,22,17,18,0,0,0,0,0,61,54,84,92,84,77,102,97,207,164,296,306,574,502,538,437,469,471,482,485,468,472,462,461,739,754,753,750,813,788,2217,2086,29989,29990,29996,29997]} 1. c4 {[%emt 0:01:15]} e6 {[%emt 0:00:36]} 2. Nc3 {[%emt 0:00:28]} d5 {[%emt 0:00:47]} 3. e3 {[%emt 0:00:22]} Nf6 {[%emt 0:01:10]} 4. Nf3 {[%emt 0:00:08]} a6 {[%emt 0:05:22]} 5. b3 {[%emt 0:07:49]} Bd6 {[%emt 0:02:07]} 6. Bb2 {[%emt 0:00:42] A17: English Opening: 1...Nf6 with ...Bb4.} Nbd7 {[%emt 0:03:16]} 7. Qc2 {[%emt 0:09:06]} O-O {[%emt 0:15:46]} 8. Rg1 {[%emt 0:22:40] The position is equal.} dxc4 {[%emt 0:24:39]} 9. bxc4 {[%emt 0:00:32]} e5 {[%emt 0:04:04]} (9... b5 $11) 10. g4 $1 $14 {[%emt 0:00:04][%cal Bg2g4,Bg4g5][%mdl 32] White is more active.} Re8 $146 {[%emt 0:05:40]} (10... Nc5 11. g5 Nfd7 12. O-O-O b5 13. d4 exd4 14. exd4 Bf4+ 15. Kb1 Bb7 16. dxc5 Bxf3 {1-0 Bommini,M (2165)-Beukes,D (2246) Chesterfield SPICE Cup op 18th 2024 (8)}) 11. g5 {[%emt 0:02:00]} Nh5 {[%emt 0:01:02]} 12. Be2 {[%emt 0:05:53]} g6 {[%emt 0:07:14]} 13. O-O-O {[%emt 0:03:36]} b5 {[%emt 0:06:29]} 14. d4 $18 {[%emt 0:01:58][%cal Bd2d4,Bd4e5][%mdl 32]} bxc4 {[%emt 0:09:00][%csl Oa6,Oc4,Oc7] Black has weak pawns} (14... b4 $142) 15. dxe5 {[%emt 0:03:47]} ({Not} 15. Bxc4 Rb8 $14) 15... Bc5 {[%emt 0:04:19]} (15... Nxe5 16. Nxe5 Rxe5 17. Bxh5 (17. Bxc4 Bf5 $14) 17... gxh5) 16. Bxc4 {[%emt 0:04:22]} Bb7 {[%emt 0:02:42]} 17. Ne4 {[%emt 0:03:12]} Bxe4 {[%emt 0:03:10]} 18. Qxe4 {[%emt 0:00:03]} Qe7 {[%emt 0:00:30] [#]} 19. e6 $1 {[%emt 0:03:43][%mdl 512]} fxe6 {[%emt 0:01:01] [#]} 20. Rxd7 $1 {[%emt 0:04:12][%mdl 512]} Qxd7 {[%emt 0:00:04]} 21. Qe5 {[%emt 0:00:02] Threatening mate with Qh8+. Against Qf7} Bxe3+ {[%emt 0:01:18]} (21... Ng7 $142 22. Qxc5 Qd6) 22. fxe3 {[%emt 0:00:37]} Ng7 {[%emt 0:00:26] Black is weak on the dark squares} 23. Rd1 {[%emt 0:07:06]} Qf7 {[%emt 0:00:21]} 24. Nd4 {[%emt 0:00:40][%cal Od4e6] Threatens to win with Nxe6!.} Rab8 {[%emt 0:00:18]} 25. Rf1 {[%emt 0:04:53]} Qd7 {[%emt 0:00:44] [#]} 26. Nxe6 $1 {[%emt 0:00:45][%mdl 512]} Rxe6 {[%emt 0:00:26]} (26... Rb4 27. Bd5) 27. Bxe6+ {[%emt 0:00:08] Black did not feel at home in the position after the opening.   Weighted Error Value: White=0.13 (very precise) /Black=0.91  Mistake:       	---       	Black=5      Inaccurate:     	---       	Black=1      OK:         	White=5     	Black=4      Best:        	White=2     	Black=4      Strong:       	White=1     	---        Brilliant:      	White=1     	---} 1-0

[Event "European Womens-ch 2025"]
[Site "Rhodes"]
[Date "2025.04.01"]
[Round "2.44"]
[White "Kulon, Klaudia"]
[Black "Shuqja, Klean"]
[Result "1-0"]
[Annotator "RC"]
[ECO "B21"]
[WhiteElo "2401"]
[BlackElo "2049"]
[PlyCount "71"]
[EventDate "2025.03.29"]
[EventType "swiss"]
[EventCountry "GRE"]
[SourceTitle "playchess.com"]
[Source "ChessBase"]
[SourceQuality "1"]
[TimeControl "40/5400+30:1800+30"]

1. e4 {[%emt 0:00:04]} c5 {[%emt 0:04:11]} 2. d4 {[%emt 0:00:12]} cxd4 {[%emt 0:00:15]} 3. Qxd4 {[%emt 0:00:05]} Nc6 {[%emt 0:00:01]} 4. Qd3 {[%emt 0:00:09]} e5 {[%emt 0:01:35]} 5. Nc3 {[%emt 0:01:21]} d6 {[%emt 0:00:56]} 6. Nf3 {[%emt 0:00:27]} h6 {[%emt 0:01:29]} 7. Be3 {[%emt 0:07:15]} Be6 {[%emt 0:01:28]} 8. O-O-O {[%emt 0:02:29]} Nf6 {[%emt 0:04:00]} 9. Nd5 {[%emt 0:11:20]} Bxd5 {[%emt 0:07:07]} 10. exd5 {[%emt 0:01:25]} Nb8 {[%emt 0:08:20]} 11. Qb3 {[%emt 0:00:55]} Qc7 {[%emt 0:04:03]} 12. g4 {[%emt 0:08:27]} Nbd7 {[%emt 0:02:48]} 13. Rg1 {[%emt 0:01:37]} Ne4 {[%emt 0:04:35]} 14. Bb5 {[%emt 0:01:15]} a6 {[%emt 0:07:38]} 15. Bb6 {[%emt 0:01:20]} Qc8 {[%emt 0:00:46]} 16. Ba4 {[%emt 0:00:27]} Be7 {[%emt 0:03:20]} 17. Qe3 {[%emt 0:02:50]} Ng5 {[%emt 0:10:00]} 18. Nh4 {[%emt 0:04:09]} Qc4 {[%emt 0:04:44]} 19. b3 {[%emt 0:05:59]} Qb4 {[%emt 0:09:35]} 20. c3 {[%emt 0:04:49]} Qe4 {[%emt 0:02:00]} 21. Qg3 {[%emt 0:01:51]} Bd8 {[%emt 0:08:39]} 22. Nf5 {[%emt 0:03:34]} O-O {[%emt 0:04:07]} 23. Bxd8 {[%emt 0:03:25]} Raxd8 {[%emt 0:03:46]} 24. Nxd6 {[%emt 0:01:05]} Qe2 {[%emt 0:00:57]} 25. Rd2 {[%emt 0:01:53]} Qf3 {[%emt 0:00:10]} 26. Nxb7 {[%emt 0:02:01]} Rc8 {[%emt 0:03:48]} 27. Bxd7 {[%emt 0:03:03]} Rxc3+ {[%emt 0:00:14]} 28. Kb2 {[%emt 0:00:06]} Rc7 {[%emt 0:01:56]} 29. Bc6 {[%emt 0:31:27]} Qxg3 {[%emt 0:00:12]} 30. Rxg3 {[%emt 0:00:00]} Ne4 {[%emt 0:00:13]} 31. Rc2 {[%emt 0:00:00]} Nxg3 {[%emt 0:00:11]} 32. hxg3 {[%emt 0:00:00]} Rb8 {[%emt 0:00:41]} 33. d6 {[%emt 0:00:00]} Rcxb7 {[%emt 0:00:35]} 34. Bxb7 {[%emt 0:00:00]} Rxb7 {[%emt 0:00:03]} 35. Rc7 {[%emt 0:00:00]} Rb8 {[%emt 0:00:34]} 36. d7 {[%emt 0:00:00]} 1-0

[Event "European Womens-ch 2025"]
[Site "Rhodes"]
[Date "2025.04.01"]
[Round "2.45"]
[White "Zhukova, Natalia"]
[Black "Mihaljevic, Eva"]
[Result "1-0"]
[Annotator "RC"]
[ECO "A13"]
[WhiteElo "2306"]
[BlackElo "2039"]
[PlyCount "105"]
[EventDate "2025.03.29"]
[EventType "swiss"]
[EventCountry "GRE"]
[SourceTitle "playchess.com"]
[Source "ChessBase"]
[SourceQuality "1"]
[TimeControl "40/5400+30:1800+30"]

1. Nf3 {[%emt 0:00:43]} d5 {[%emt 0:00:26]} 2. e3 {[%emt 0:00:16]} Nf6 {[%emt 0:01:14]} 3. c4 {[%emt 0:00:13]} e6 {[%emt 0:00:10]} 4. Nc3 {[%emt 0:00:27]} Be7 {[%emt 0:01:40]} 5. b3 {[%emt 0:00:19]} O-O {[%emt 0:00:29]} 6. Bb2 {[%emt 0:00:08]} b6 {[%emt 0:00:16]} 7. cxd5 {[%emt 0:02:16]} exd5 {[%emt 0:01:13]} 8. Be2 {[%emt 0:07:44]} Bb7 {[%emt 0:04:42]} 9. O-O {[%emt 0:08:20]} Nbd7 {[%emt 0:00:27]} 10. Rc1 {[%emt 0:00:39]} c5 {[%emt 0:10:10]} 11. d4 {[%emt 0:00:59]} Re8 {[%emt 0:06:45]} 12. Bd3 {[%emt 0:02:13]} Bf8 {[%emt 0:04:50]} 13. Qe2 {[%emt 0:03:08]} Ne4 {[%emt 0:21:38]} 14. Rfd1 {[%emt 0:03:45]} Qe7 {[%emt 0:08:23]} 15. Ba6 {[%emt 0:06:35]} Ndf6 {[%emt 0:01:32]} 16. Bxb7 {[%emt 0:07:04]} Qxb7 {[%emt 0:01:13]} 17. dxc5 {[%emt 0:06:13]} bxc5 {[%emt 0:07:38]} 18. Nxe4 {[%emt 0:07:04]} Nxe4 {[%emt 0:00:27]} 19. Nd2 {[%emt 0:03:13]} d4 {[%emt 0:12:42]} 20. Nc4 {[%emt 0:10:49]} Nd6 {[%emt 0:06:45]} 21. Nxd6 {[%emt 0:12:12]} Bxd6 {[%emt 0:00:05]} 22. Qf3 {[%emt 0:03:55]} Qxf3 {[%emt 0:01:35]} 23. gxf3 {[%emt 0:00:01]} Bf8 {[%emt 0:02:17]} 24. exd4 {[%emt 0:05:06]} Re2 {[%emt 0:03:03]} 25. Ba1 {[%emt 0:00:12]} cxd4 {[%emt 0:00:35]} 26. a4 {[%emt 0:00:03]} Rb8 {[%emt 0:01:24]} 27. Bxd4 {[%emt 0:01:03]} a5 {[%emt 0:01:18]} 28. Ba7 {[%emt 0:05:29]} Rbe8 {[%emt 0:00:54]} 29. Rd5 {[%emt 0:02:25]} Bb4 {[%emt 0:00:32]} 30. Bc5 {[%emt 0:01:37]} Bd2 {[%emt 0:00:36]} 31. Rc2 {[%emt 0:00:54]} Re1+ {[%emt 0:00:22]} 32. Kg2 {[%emt 0:00:01]} Bf4 {[%emt 0:00:19]} 33. Rc4 {[%emt 0:00:59]} g5 {[%emt 0:00:32]} 34. Bd4 {[%emt 0:00:41]} Rb1 {[%emt 0:00:42]} 35. Rb5 {[%emt 0:00:32]} h6 {[%emt 0:00:19]} 36. Bc3 {[%emt 0:00:30]} Re2 {[%emt 0:00:36]} 37. Rc8+ {[%emt 0:00:21]} Kh7 {[%emt 0:00:10]} 38. Rh8+ {[%emt 0:00:46]} Kg6 {[%emt 0:00:10]} 39. Rb6+ {[%emt 0:00:33]} Re6 {[%emt 0:00:17]} 40. Rg8+ {[%emt 0:00:00]} Kf5 {[%emt 0:00:00]} 41. Rb5+ {[%emt 0:01:59]} Be5 {[%emt 0:02:07]} 42. Ra8 {[%emt 0:03:24]} f6 {[%emt 0:04:57]} 43. Raxa5 {[%emt 0:01:39]} Kg6 {[%emt 0:05:42]} 44. Bxe5 {[%emt 0:01:53]} fxe5 {[%emt 0:00:14]} 45. Rb4 {[%emt 0:03:31]} Kf5 {[%emt 0:08:35]} 46. Rab5 {[%emt 0:00:25]} Rc6 {[%emt 0:01:43]} 47. Re4 {[%emt 0:00:11]} Rc2 {[%emt 0:04:04]} 48. Rexe5+ {[%emt 0:02:34]} Kf6 {[%emt 0:00:13]} 49. f4 {[%emt 0:01:26]} Rbb2 {[%emt 0:04:26]} 50. fxg5+ {[%emt 0:00:32]} hxg5 {[%emt 0:00:09]} 51. Rf5+ {[%emt 0:00:46]} Ke6 {[%emt 0:00:08]} 52. Rbe5+ {[%emt 0:03:33]} Kd6 {[%emt 0:00:25]} 53. Re3 {[%emt 0:00:08]} 1-0

[Event "European Womens-ch 2025"]
[Site "Rhodes"]
[Date "2025.04.01"]
[Round "2.46"]
[White "Kochavi, Dana"]
[Black "Caku, Kler"]
[Result "1-0"]
[Annotator "RC"]
[ECO "C97"]
[WhiteElo "2301"]
[BlackElo "2036"]
[PlyCount "75"]
[EventDate "2025.03.29"]
[EventType "swiss"]
[EventCountry "GRE"]
[SourceTitle "playchess.com"]
[Source "ChessBase"]
[SourceQuality "1"]
[TimeControl "40/5400+30:1800+30"]

1. e4 {[%emt 0:00:01]} e5 {[%emt 0:00:04]} 2. Nf3 {[%emt 0:00:04]} Nc6 {[%emt 0:00:06]} 3. Bb5 {[%emt 0:00:03]} a6 {[%emt 0:00:05]} 4. Ba4 {[%emt 0:00:03]} Nf6 {[%emt 0:00:06]} 5. O-O {[%emt 0:00:03]} b5 {[%emt 0:00:05]} 6. Bb3 {[%emt 0:00:03]} Be7 {[%emt 0:00:08]} 7. Re1 {[%emt 0:00:02]} d6 {[%emt 0:00:07]} 8. c3 {[%emt 0:00:19]} O-O {[%emt 0:00:14]} 9. h3 {[%emt 0:00:02]} Na5 {[%emt 0:00:08]} 10. Bc2 {[%emt 0:00:03]} c5 {[%emt 0:00:07]} 11. d4 {[%emt 0:00:03]} Qc7 {[%emt 0:00:05]} 12. d5 {[%emt 0:00:03]} Nd7 {[%emt 0:00:06]} 13. b3 {[%emt 0:00:04]} Nb6 {[%emt 0:00:05]} 14. Nbd2 {[%emt 0:00:03]} f5 {[%emt 0:00:32]} 15. exf5 {[%emt 0:00:06]} Nxd5 {[%emt 0:00:08]} 16. Ne4 {[%emt 0:06:22]} Qc6 {[%emt 0:09:31]} 17. Ng3 {[%emt 0:25:18]} Nf6 {[%emt 0:09:27]} 18. Bd2 {[%emt 0:06:25]} Qc7 {[%emt 0:04:10]} 19. Ng5 {[%emt 0:07:40]} Nc6 {[%emt 0:04:14]} 20. a4 {[%emt 0:10:36]} bxa4 {[%emt 0:08:08]} 21. Rxa4 {[%emt 0:00:12]} Nd8 {[%emt 0:06:49]} 22. Qe2 {[%emt 0:05:47]} h6 {[%emt 0:08:20]} 23. N5e4 {[%emt 0:05:00]} d5 {[%emt 0:07:40]} 24. Nxf6+ {[%emt 0:00:11]} Bxf6 {[%emt 0:00:06]} 25. Rg4 {[%emt 0:05:32]} Kh8 {[%emt 0:01:56]} 26. Rg6 {[%emt 0:06:33]} e4 {[%emt 0:11:15]} 27. c4 {[%emt 0:06:54]} Bd4 {[%emt 0:08:26]} 28. Qh5 {[%emt 0:04:20]} Nf7 {[%emt 0:08:03]} 29. cxd5 {[%emt 0:01:35]} Kg8 {[%emt 0:06:18]} 30. f6 {[%emt 0:04:39]} Bxf6 {[%emt 0:01:26]} 31. Nxe4 {[%emt 0:00:09]} Bd4 {[%emt 0:01:38]} 32. Nf6+ {[%emt 0:00:56]} Bxf6 {[%emt 0:00:34]} 33. Rxf6 {[%emt 0:00:05]} Nd6 {[%emt 0:02:39]} 34. Rxf8+ {[%emt 0:00:27]} Kxf8 {[%emt 0:00:02]} 35. Re3 {[%emt 0:00:38]} Bb7 {[%emt 0:02:27]} 36. Rf3+ {[%emt 0:00:07]} Kg8 {[%emt 0:00:06]} 37. Qg6 {[%emt 0:00:07]} Nf7 {[%emt 0:00:29]} 38. Bxh6 {[%emt 0:00:20]} 1-0

[Event "European Womens-ch 2025"]
[Site "Rhodes"]
[Date "2025.04.01"]
[Round "2.47"]
[White "Zvereva, Marija"]
[Black "Schippke, Manon"]
[Result "1-0"]
[Annotator "RC"]
[ECO "A13"]
[WhiteElo "2033"]
[BlackElo "2247"]
[PlyCount "71"]
[EventDate "2025.03.29"]
[EventType "swiss"]
[EventCountry "GRE"]
[SourceTitle "playchess.com"]
[Source "ChessBase"]
[SourceQuality "1"]
[TimeControl "40/5400+30:1800+30"]

1. c4 {[%emt 0:08:37]} e6 {[%emt 0:02:15]} 2. Nf3 {[%emt 0:00:16]} d5 {[%emt 0:00:26]} 3. b3 {[%emt 0:01:01]} d4 {[%emt 0:03:51]} 4. Bb2 {[%emt 0:05:01]} Nc6 {[%emt 0:01:26]} 5. e3 {[%emt 0:13:37]} e5 {[%emt 0:03:09]} 6. a3 {[%emt 0:14:58]} a5 {[%emt 0:05:54]} 7. exd4 {[%emt 0:15:36]} exd4 {[%emt 0:00:05]} 8. d3 {[%emt 0:00:53]} Bg4 {[%emt 0:10:04]} 9. h3 {[%emt 0:08:42]} Be6 {[%emt 0:04:26]} 10. Be2 {[%emt 0:02:38]} h6 {[%emt 0:00:43]} 11. Nbd2 {[%emt 0:00:30]} Nf6 {[%emt 0:00:53]} 12. Ne4 {[%emt 0:04:11]} Nh7 {[%emt 0:05:36]} 13. O-O {[%emt 0:03:54]} Be7 {[%emt 0:04:33]} 14. b4 {[%emt 0:02:22]} f5 {[%emt 0:01:19]} 15. Ng3 {[%emt 0:00:27]} Bf6 {[%emt 0:02:10]} 16. Nh5 {[%emt 0:02:06]} Ng5 {[%emt 0:11:08]} 17. b5 {[%emt 0:00:58]} Nxf3+ {[%emt 0:01:09]} 18. Bxf3 {[%emt 0:00:05]} Ne5 {[%emt 0:00:03]} 19. Nxf6+ {[%emt 0:02:33]} Qxf6 {[%emt 0:00:23]} 20. Bxb7 {[%emt 0:00:53]} Rb8 {[%emt 0:00:03]} 21. Bf3 {[%emt 0:02:23]} O-O {[%emt 0:02:05]} 22. Rb1 {[%emt 0:01:57]} f4 {[%emt 0:07:15]} 23. Re1 {[%emt 0:01:24]} Bf5 {[%emt 0:02:23]} 24. Bd5+ {[%emt 0:00:41]} Nf7 {[%emt 0:00:03]} 25. Qd2 {[%emt 0:01:51]} f3 {[%emt 0:01:24]} 26. Bxf3 {[%emt 0:00:48]} Bxh3 {[%emt 0:00:15]} 27. Bd5 {[%emt 0:00:33]} Qg6 {[%emt 0:02:48]} 28. Bxd4 {[%emt 0:00:36]} Kh8 {[%emt 0:00:15]} 29. Re7 {[%emt 0:01:21]} Rbd8 {[%emt 0:00:29]} 30. f3 {[%emt 0:01:34]} Bf5 {[%emt 0:06:31]} 31. Rbe1 {[%emt 0:00:49]} h5 {[%emt 0:01:50]} 32. Rxc7 {[%emt 0:00:44]} Rd7 {[%emt 0:01:00]} 33. Rxd7 {[%emt 0:00:14]} Bxd7 {[%emt 0:00:03]} 34. Re7 {[%emt 0:00:13]} Bf5 {[%emt 0:00:02]} 35. b6 {[%emt 0:00:48]} Bxd3 {[%emt 0:01:53]} 36. Rxf7 {[%emt 0:00:42]} 1-0

[Event "European Womens-ch 2025"]
[Site "Rhodes"]
[Date "2025.04.01"]
[Round "2.48"]
[White "Khurtsilava, Inga"]
[Black "Subramanian, Anusha"]
[Result "1/2-1/2"]
[Annotator "RC"]
[ECO "A47"]
[WhiteElo "2214"]
[BlackElo "2026"]
[PlyCount "88"]
[EventDate "2025.03.29"]
[EventType "swiss"]
[EventCountry "GRE"]
[SourceTitle "playchess.com"]
[Source "ChessBase"]
[SourceQuality "1"]
[TimeControl "40/5400+30:1800+30"]

1. d4 {[%emt 0:00:37]} Nf6 {[%emt 0:00:06]} 2. Nf3 {[%emt 0:00:28]} b6 {[%emt 0:00:07]} 3. e3 {[%emt 1:30:55]} Bb7 {[%emt 0:00:06]} 4. Bd3 {[%emt 0:00:00]} c5 {[%emt 0:00:07]} 5. Nbd2 {[%emt 0:00:00]} e6 {[%emt 0:00:09]} 6. O-O {[%emt 0:00:00]} Be7 {[%emt 0:00:24]} 7. b3 {[%emt 0:00:00]} O-O {[%emt 1:33:01]} 8. Bb2 {[%emt 0:02:30]} cxd4 {[%emt 0:00:00]} 9. exd4 {[%emt 0:00:00]} d6 {[%emt 0:01:00]} 10. a3 {[%emt 0:01:00]} Nbd7 {[%emt 0:00:00]} 11. Re1 {[%emt 0:00:30]} Re8 {[%emt 0:00:00]} 12. c4 {[%emt 0:00:00]} Rc8 {[%emt 0:00:00]} 13. Rc1 {[%emt 0:00:00]} Rc7 {[%emt 0:00:00]} 14. Ne4 {[%emt 0:00:00]} Qa8 {[%emt 0:00:00]} 15. Qe2 {[%emt 0:00:00]} Rec8 {[%emt 0:00:00]} 16. Neg5 {[%emt 0:00:00]} Nf8 {[%emt 0:00:00]} 17. Rcd1 {[%emt 0:00:00]} h6 {[%emt 0:00:00]} 18. Nh3 {[%emt 0:00:00]} Bxf3 {[%emt 0:00:00]} 19. gxf3 {[%emt 0:00:00]} d5 {[%emt 0:00:00]} 20. f4 {[%emt 0:00:00]} Bd6 {[%emt 0:00:00]} 21. f3 {[%emt 0:00:00]} Nh5 {[%emt 0:00:00]} 22. Bc1 {[%emt 0:00:00]} dxc4 {[%emt 0:00:00]} 23. bxc4 {[%emt 0:00:00]} Re7 {[%emt 0:00:00]} 24. Qg2 {[%emt 0:00:00]} f5 {[%emt 0:00:00]} 25. Kh1 {[%emt 0:00:00]} Qb8 {[%emt 0:00:00]} 26. d5 {[%emt 0:00:00]} Bxf4 {[%emt 0:00:00]} 27. Bxf5 {[%emt 0:00:00]} Rxc4 {[%emt 0:00:00]} 28. Bxf4 {[%emt 0:00:00]} Nxf4 {[%emt 0:00:00]} 29. Nxf4 {[%emt 0:00:00]} Qxf4 {[%emt 0:00:00]} 30. Bxe6+ {[%emt 0:00:00]} Nxe6 {[%emt 0:00:00]} 31. dxe6 {[%emt 0:00:00]} Qf6 {[%emt 0:00:00]} 32. Qe2 {[%emt 0:00:00]} Rc8 {[%emt 0:00:00]} 33. Rd7 {[%emt 0:00:00]} Rce8 {[%emt 0:00:00]} 34. Rxe7 {[%emt 0:00:00]} Rxe7 {[%emt 0:00:00]} 35. Qe4 {[%emt 0:00:00]} g6 {[%emt 0:00:00]} 36. a4 {[%emt 0:02:26]} Kg7 {[%emt 0:00:00]} 37. Kg2 {[%emt 0:01:52]} Qg5+ {[%emt 0:01:21]} 38. Kf1 {[%emt 0:00:27]} Qf5 {[%emt 0:00:28]} 39. Qd4+ {[%emt 0:01:40]} Qf6 {[%emt 0:00:14]} 40. Qd5 {[%emt 0:00:00]} Qf4 {[%emt 0:00:00]} 41. Re2 {[%emt 0:10:40]} Qc1+ {[%emt 0:04:51]} 42. Re1 {[%emt 0:01:46]} Qf4 {[%emt 0:00:15]} 43. Re2 {[%emt 0:06:30]} Qc1+ {[%emt 0:01:14]} 44. Re1 {[%emt 0:03:23]} Qf4 {[%emt 0:00:38]} 1/2-1/2

[Event "European Womens-ch 2025"]
[Site "Rhodes"]
[Date "2025.04.01"]
[Round "2.49"]
[White "Schloffer, Jasmin-Denise"]
[Black "Hariharan, Shambavi"]
[Result "1/2-1/2"]
[Annotator "RC"]
[ECO "D38"]
[WhiteElo "2188"]
[BlackElo "2024"]
[PlyCount "56"]
[EventDate "2025.03.29"]
[EventType "swiss"]
[EventCountry "GRE"]
[SourceTitle "playchess.com"]
[Source "ChessBase"]
[SourceQuality "1"]
[TimeControl "40/5400+30:1800+30"]

1. d4 {[%emt 0:00:03]} d5 {[%emt 0:00:04]} 2. c4 {[%emt 0:00:05]} e6 {[%emt 0:00:05]} 3. Nc3 {[%emt 0:00:06]} Nf6 {[%emt 0:00:08]} 4. Nf3 {[%emt 0:00:07]} Bb4 {[%emt 0:00:05]} 5. cxd5 {[%emt 0:00:04]} exd5 {[%emt 0:00:18]} 6. Bg5 {[%emt 0:00:06]} h6 {[%emt 0:00:55]} 7. Bh4 {[%emt 0:00:06]} O-O {[%emt 0:01:55]} 8. e3 {[%emt 0:00:11]} Bf5 {[%emt 0:02:48]} 9. Be2 {[%emt 0:01:20]} Nbd7 {[%emt 0:02:43]} 10. Qb3 {[%emt 0:04:11]} c5 {[%emt 0:05:47]} 11. O-O {[%emt 0:13:18]} Bxc3 {[%emt 0:02:58]} 12. Qxc3 {[%emt 0:04:27]} Rc8 {[%emt 0:05:25]} 13. dxc5 {[%emt 0:05:15]} Rxc5 {[%emt 0:07:36]} 14. Qb3 {[%emt 0:01:31]} b6 {[%emt 0:22:28]} 15. Nd4 {[%emt 0:07:10]} Bg6 {[%emt 0:01:22]} 16. Bd3 {[%emt 0:14:10]} Ne5 {[%emt 0:06:31]} 17. Bxg6 {[%emt 0:08:20]} Nxg6 {[%emt 0:00:08]} 18. Bg3 {[%emt 0:00:06]} Ne4 {[%emt 0:00:40]} 19. Nf3 {[%emt 0:00:38]} Qf6 {[%emt 0:03:06]} 20. Rad1 {[%emt 0:05:56]} Nxg3 {[%emt 0:04:47]} 21. hxg3 {[%emt 0:00:13]} Rfc8 {[%emt 0:01:12]} 22. Rd2 {[%emt 0:05:13]} Ne5 {[%emt 0:05:19]} 23. Nxe5 {[%emt 0:00:25]} Qxe5 {[%emt 0:00:04]} 24. Rfd1 {[%emt 0:01:42]} Qh5 {[%emt 0:08:33]} 25. Rxd5 {[%emt 0:14:08]} Rxd5 {[%emt 0:00:24]} 26. Qxd5 {[%emt 0:00:05]} Qxd5 {[%emt 0:01:38]} 27. Rxd5 {[%emt 0:00:05]} Rc1+ {[%emt 0:00:04]} 28. Kh2 {[%emt 0:00:04]} Rc2 {[%emt 0:00:04]} 1/2-1/2